fUST/lending_fUST_20250620
["ID","MTS","AMOUNT","RATE_DAILY","PERIOD"]
[366759101,1750434645229,-460.0,0.00019572,2]
[366759103,1750434645239,-1824.29,0.00019572,2]
[366759104,1750434645249,-1494.94,0.00019572,2]
[366759107,1750434645259,-460.0,0.00019572,2]
[366759108,1750434645269,-460.0,0.00019572,2]
[366759111,1750434645278,-346.31845381,0.00019572,2]
[366759112,1750434645288,-460.0,0.00019572,2]
[366759114,1750434645298,-1381.71,0.00019572,2]
[366759116,1750434645307,-460.0,0.00019572,2]
[366759119,1750434645317,-460.0,0.00019573,2]
[366759120,1750434645327,-460.0,0.00019573,2]
[366759122,1750434645336,-1510.33,0.00019573,2]
[366759125,1750434645348,-386.24584849,0.00019573,2]
[366759127,1750434645357,-460.0,0.00019573,2]
[366759129,1750434645367,-556.00428834,0.00019573,2]
[366759131,1750434645377,-1727.98,0.00019573,2]
[366759133,1750434645387,-518.78,0.00019573,2]
[366759135,1750434645397,-460.0,0.00019573,2]
[366759137,1750434645406,-465.04312893,0.00019573,2]
[366759139,1750434645416,-460.0,0.00019573,2]
[366759141,1750434645426,-763.9,0.00019573,2]
[366759143,1750434645435,-839.66,0.00019573,2]
[366759144,1750434645444,-1294.25,0.00019573,2]
[366759147,1750434645454,-438.17926939,0.00019573,2]
[366759148,1750434645464,-460.0,0.00019573,2]
[366759150,1750434645473,-460.0,0.00019573,2]
[366759153,1750434645484,-577.21791074,0.00019573,2]
[366759167,1750434645493,-351.24236937,0.00019573,2]
[366759170,1750434645638,-460.0,0.00019573,2]
[366759172,1750434645648,-460.0,0.00019573,2]
[366759174,1750434645658,-460.0,0.00019573,2]
[366759176,1750434645668,-460.0,0.00019573,2]
[366759178,1750434645678,-460.0,0.00019573,2]
[366759180,1750434645689,-460.0,0.00019573,2]
[366759182,1750434645699,-460.0,0.00019573,2]
[366759184,1750434645708,-460.0,0.00019573,2]
[366759186,1750434645717,-460.0,0.00019573,2]
[366759188,1750434645727,-460.0,0.00019573,2]
[366759190,1750434645736,-460.0,0.00019573,2]
[366759192,1750434645746,-460.0,0.00019573,2]
[366759194,1750434645755,-460.0,0.00019573,2]
[366759196,1750434645764,-460.0,0.00019573,2]
[366759198,1750434645774,-460.0,0.00019573,2]
[366759200,1750434645783,-460.0,0.00019573,2]
[366759202,1750434645792,-185.88656461,0.00019573,2]
[366759204,1750434645802,-460.0,0.00019573,2]
[366759206,1750434645811,-440.0,0.00019573,2]
[366759208,1750434645820,-460.0,0.00019573,2]
[366759210,1750434645831,-460.0,0.00019573,2]
[366759212,1750434645841,-460.0,0.00019573,2]
[366759214,1750434645851,-462.47499441,0.00019573,2]
[366759216,1750434645860,-440.0,0.00019575,2]
[366759218,1750434645870,-460.0,0.00019575,2]
[366759220,1750434645880,-460.0,0.00019575,2]
[366759222,1750434645889,-460.0,0.00019575,2]
[366759224,1750434645899,-460.0,0.00019575,2]
[366759226,1750434645908,-460.0,0.00019575,2]
[366759228,1750434645917,-460.0,0.00019575,2]
[366759230,1750434645927,-460.0,0.00019575,2]
[366759232,1750434645936,-460.0,0.00019575,2]
[366759233,1750434645946,-396.34402613,0.00019575,2]
[366759235,1750434645956,-460.0,0.00019575,2]
[366759237,1750434645966,-460.0,0.00019575,2]
[366759239,1750434645975,-460.0,0.00019575,2]
[366759241,1750434645985,-460.0,0.00019575,2]
[366759242,1750434645995,-157.70803184,0.00019575,2]
[366759243,1750434646005,-460.0,0.00019575,2]
[366759244,1750434646015,-460.0,0.00019575,2]
[366759245,1750434646025,-460.0,0.00019575,2]
[366759246,1750434646034,-460.0,0.00019575,2]
[366759247,1750434646044,-460.0,0.00019575,2]
[366759248,1750434646053,-460.0,0.00019575,2]
[366759250,1750434646063,-460.0,0.00019575,2]
[366759251,1750434646073,-460.0,0.00019575,2]
[366759252,1750434646083,-460.0,0.00019575,2]
[366759253,1750434646093,-460.0,0.00019575,2]
[366759255,1750434646103,-460.0,0.00019575,2]
[366759256,1750434646112,-460.0,0.00019575,2]
[366759258,1750434646122,-460.0,0.00019575,2]
[366759259,1750434646132,-460.0,0.00019575,2]
[366759260,1750434646142,-460.0,0.00019575,2]
[366759261,1750434646151,-460.0,0.00019575,2]
[366759262,1750434646161,-460.0,0.00019575,2]
[366759263,1750434646171,-460.0,0.00019575,2]
[366759264,1750434646180,-460.0,0.00019575,2]
[366759265,1750434646190,-460.0,0.00019575,2]
[366759267,1750434646200,-460.0,0.00019575,2]
[366759268,1750434646210,-460.0,0.00019575,2]
[366759269,1750434646219,-517.83,0.00019575,2]
[366759270,1750434646229,-460.0,0.00019575,2]
[366759271,1750434646239,-460.0,0.00019575,2]
[366759272,1750434646248,-460.0,0.00019575,2]
[366759273,1750434646258,-460.0,0.00019575,2]
[366759274,1750434646268,-460.0,0.00019575,2]
[366759275,1750434646278,-460.0,0.00019575,2]
[366759276,1750434646288,-460.0,0.00019575,2]
[366759277,1750434646297,-408.77738163,0.00019575,2]
[366759278,1750434646307,-460.0,0.00019575,2]
[366759279,1750434646316,-460.0,0.00019575,2]
[366759280,1750434646325,-599.21071419,0.00019575,2]
[366759281,1750434646335,-460.0,0.00019575,2]
[366759282,1750434646345,-460.0,0.00019575,2]
[366759283,1750434646354,-460.0,0.00019575,2]
[366759284,1750434646364,-460.0,0.00019575,2]
[366759285,1750434646373,-460.0,0.00019575,2]
[366759286,1750434646383,-460.0,0.00019575,2]
[366759287,1750434646393,-503.11230305,0.00019575,2]
[366759288,1750434646403,-460.48,0.00019575,2]
[366759289,1750434646412,-460.0,0.00019575,2]
[366759290,1750434646422,-460.0,0.00019575,2]
[366759291,1750434646432,-460.0,0.00019575,2]
[366759292,1750434646441,-678.06,0.00019575,2]
[366759293,1750434646451,-434.91215162,0.00019575,2]
[366759294,1750434646461,-460.0,0.00019575,2]
[366759295,1750434646470,-460.0,0.00019575,2]
[366759296,1750434646480,-460.0,0.00019575,2]
[366759297,1750434646490,-366.10575583,0.00019575,2]
[366759298,1750434646499,-1121.3,0.00019575,2]
[366759299,1750434646509,-460.0,0.00019575,2]
[366759300,1750434646519,-611.74,0.00019575,2]
[366759301,1750434646532,-460.0,0.00019575,2]
[366759302,1750434646541,-460.0,0.00019575,2]
[366759303,1750434646551,-460.0,0.00019575,2]
[366759304,1750434646561,-460.0,0.00019575,2]
[366759305,1750434646571,-460.0,0.00019575,2]
[366759306,1750434646581,-460.0,0.00019575,2]
[366759307,1750434646590,-460.0,0.00019575,2]
[366759308,1750434646601,-617.93,0.00019575,2]
[366759309,1750434646613,-460.0,0.00019575,2]
[366759310,1750434646624,-460.0,0.00019575,2]
[366759311,1750434646634,-460.0,0.00019575,2]
[366759312,1750434646644,-460.0,0.00019575,2]
[366759313,1750434646654,-460.0,0.00019575,2]
[366759315,1750434646663,-1032.5,0.00019575,2]
[366759317,1750434646673,-460.0,0.00019575,2]
[366759319,1750434646684,-460.0,0.00019575,2]
[366759320,1750434646693,-460.0,0.00019575,2]
[366759321,1750434646703,-559.21,0.00019575,2]
[366759322,1750434646712,-460.0,0.00019576,2]
[366759323,1750434646722,-371.9588752,0.00019576,2]
[366759324,1750434646733,-440.0,0.00019576,2]
[366759325,1750434646742,-493.27696947,0.00019576,2]
[366759326,1750434646752,-389.7869222,0.00019576,2]
[366759327,1750434646763,-460.0,0.00019576,2]
[366759328,1750434646773,-460.0,0.00019576,2]
[366759329,1750434646783,-864.56,0.00019576,2]
[366759330,1750434646793,-992.41,0.00019576,2]
[366759331,1750434646802,-2253.28,0.00019576,2]
[366759332,1750434646812,-791.08,0.00019576,2]
[366759333,1750434646821,-403.35501149,0.00019577,2]
[366759334,1750434646831,-300.0,0.00019577,2]
[366759335,1750434646841,-460.0,0.00019577,2]
[366759336,1750434646850,-460.0,0.00019577,2]
[366759337,1750434646860,-208.58815629,0.00019577,2]
[366759338,1750434646870,-410.0,0.00019577,2]
[366759339,1750434646880,-460.0,0.00019577,2]
[366759340,1750434646890,-460.0,0.00019577,2]
[366759341,1750434646900,-460.0,0.00019577,2]
[366759342,1750434646909,-265.64,0.00019577,2]
[366759343,1750434646919,-460.0,0.00019577,2]
[366759344,1750434646928,-460.0,0.00019577,2]
[366759345,1750434646938,-460.0,0.00019577,2]
[366759346,1750434646948,-460.0,0.00019577,2]
[366759347,1750434646958,-460.0,0.00019577,2]
[366759348,1750434646968,-268.362614,0.00019577,2]
[366759349,1750434646978,-460.0,0.00019577,2]
[366759350,1750434646988,-460.0,0.00019577,2]
[366759351,1750434646998,-460.0,0.00019577,2]
[366759352,1750434647007,-460.0,0.00019577,2]
[366759353,1750434647017,-460.0,0.00019577,2]
[366759354,1750434647027,-460.0,0.00019577,2]
[366759355,1750434647036,-460.0,0.00019577,2]
[366759356,1750434647045,-460.0,0.00019577,2]
[366759357,1750434647055,-460.0,0.00019577,2]
[366759358,1750434647066,-460.0,0.00019577,2]
[366759359,1750434647076,-460.0,0.00019577,2]
[366759360,1750434647086,-460.0,0.00019577,2]
[366759361,1750434647095,-460.0,0.00019577,2]
[366759362,1750434647104,-460.0,0.00019577,2]
[366759363,1750434647114,-460.0,0.00019577,2]
[366759364,1750434647124,-460.0,0.00019577,2]
[366759365,1750434647134,-460.0,0.00019577,2]
[366759366,1750434647144,-460.0,0.00019577,2]
[366759367,1750434647154,-460.0,0.00019577,2]
[366759368,1750434647163,-460.0,0.00019577,2]
[366759369,1750434647173,-460.0,0.00019577,2]
[366759370,1750434647182,-577.12778028,0.00019577,2]
[366759371,1750434647191,-460.0,0.00019577,2]
[366759372,1750434647201,-460.0,0.00019577,2]
[366759373,1750434647210,-362.21002059,0.00019577,2]
[366759374,1750434647220,-210.39814595,0.00019577,2]
[366759375,1750434647230,-511.96205681,0.00019577,2]
[366759376,1750434647239,-460.0,0.00019577,2]
[366759377,1750434647249,-460.0,0.00019577,2]
[366759378,1750434647259,-460.0,0.00019577,2]
[366759379,1750434647269,-437.98071053,0.00019577,2]
[366759380,1750434647279,-460.0,0.00019577,2]
[366759381,1750434647289,-460.0,0.00019577,2]
[366759382,1750434647299,-460.0,0.00019578,2]
[366759383,1750434647309,-460.0,0.00019578,2]
[366759384,1750434647318,-460.0,0.00019578,2]
[366759385,1750434647328,-460.0,0.00019578,2]
[366759386,1750434647338,-460.0,0.00019578,2]
[366759387,1750434647347,-500.0,0.00019579,2]
[366759388,1750434647357,-1000.0,0.00019579,2]
[366759389,1750434647367,-1000.0,0.00019669,2]
[366759390,1750434647377,-1000.0,0.00019671,2]
[366759391,1750434647386,-6744.92795448,0.00019725,2]
[366759392,1750434647396,-460.0,0.00019846,2]
[366759393,1750434647407,-460.0,0.00019846,2]
[366759394,1750434647418,-767.24,0.00019846,2]
[366759395,1750434647428,-460.0,0.00019846,2]
[366759396,1750434647438,-253.68256274,0.00019846,2]
[366759397,1750434647448,-1824.29,0.00019846,2]
[366759398,1750434647458,-1494.94,0.00019846,2]
[366759399,1750434647468,-460.0,0.00019846,2]
[366759400,1750434647478,-460.0,0.00019846,2]
[366759401,1750434647488,-460.0,0.00019846,2]
[366759402,1750434647497,-1381.71,0.00019846,2]
[366759403,1750434647508,-460.0,0.00019846,2]
[366759404,1750434647517,-460.0,0.00019847,2]
[366759405,1750434647528,-1510.33,0.00019847,2]
[366759406,1750434647541,-460.0,0.00019847,2]
[366759407,1750434647551,-1727.98,0.00019847,2]
[366759408,1750434647561,-518.78,0.00019847,2]
[366759409,1750434647573,-460.0,0.00019847,2]
[366759410,1750434647583,-763.9,0.00019847,2]
[366759411,1750434647592,-839.66,0.00019847,2]
[366759412,1750434647604,-1294.25,0.00019847,2]
[366759413,1750434647613,-460.0,0.00019847,2]
[366759414,1750434647624,-460.0,0.00019847,2]
[366759415,1750434647638,-460.0,0.00019847,2]
[366759416,1750434647648,-460.0,0.00019847,2]
[366759417,1750434647658,-415.10940964,0.00019847,2]
[366759418,1750434647667,-460.0,0.00019847,2]
[366759419,1750434647677,-460.0,0.00019847,2]
[366759420,1750434647687,-460.0,0.00019847,2]
[366759421,1750434647696,-460.0,0.00019847,2]
[366759422,1750434647706,-460.0,0.00019847,2]
[366759423,1750434647716,-460.0,0.00019847,2]
[366759424,1750434647726,-460.0,0.00019847,2]
[366759425,1750434647736,-460.0,0.00019847,2]
[366759426,1750434647746,-460.0,0.00019849,2]
[366759427,1750434647755,-460.0,0.00019849,2]
[366759428,1750434647765,-460.0,0.00019849,2]
[366759429,1750434647775,-460.0,0.00019849,2]
[366759430,1750434647784,-460.0,0.00019849,2]
[366759431,1750434647795,-486.53565264,0.00019849,2]
[366759432,1750434647805,-460.0,0.00019849,2]
[366759433,1750434647815,-460.0,0.00019849,2]
[366759434,1750434647825,-460.0,0.00019849,2]
[366759435,1750434647836,-460.0,0.00019849,2]
[366759436,1750434647846,-460.0,0.00019849,2]
[366759437,1750434647855,-460.0,0.00019849,2]
[366759438,1750434647865,-460.0,0.00019849,2]
[366759439,1750434647874,-460.0,0.00019849,2]
[366759440,1750434647883,-460.0,0.00019849,2]
[366759441,1750434647893,-460.0,0.00019849,2]
[366759442,1750434647903,-460.0,0.00019849,2]
[366759443,1750434647912,-517.83,0.00019849,2]
[366759444,1750434647922,-460.0,0.00019849,2]
[366759445,1750434647932,-460.0,0.00019849,2]
[366759446,1750434647942,-410.0,0.00019849,2]
[366759447,1750434647952,-460.0,0.00019849,2]
[366759448,1750434647962,-460.0,0.00019849,2]
[366759449,1750434647972,-460.0,0.00019849,2]
[366759450,1750434647982,-460.0,0.00019849,2]
[366759451,1750434647992,-460.0,0.00019849,2]
[366759452,1750434648002,-460.0,0.00019849,2]
[366759453,1750434648011,-460.0,0.00019849,2]
[366759454,1750434648021,-460.48,0.00019849,2]
[366759455,1750434648031,-460.0,0.00019849,2]
[366759456,1750434648040,-460.0,0.00019849,2]
[366759457,1750434648050,-678.06,0.00019849,2]
[366759458,1750434648059,-511.96307,0.00019849,2]
[366759459,1750434648069,-460.0,0.00019849,2]
[366759460,1750434648079,-253.69013517,0.00019849,2]
[366759461,1750434648088,-460.0,0.00019849,2]
[366759462,1750434648098,-1121.3,0.00019849,2]
[366759463,1750434648108,-611.74,0.00019849,2]
[366759464,1750434648117,-460.0,0.00019849,2]
[366759465,1750434648127,-460.0,0.00019849,2]
[366759466,1750434648137,-460.0,0.00019849,2]
[366759467,1750434648146,-460.0,0.00019849,2]
[366759468,1750434648157,-460.0,0.00019849,2]
[366759469,1750434648167,-617.93,0.00019849,2]
[366759470,1750434648177,-460.0,0.00019849,2]
[366759471,1750434648187,-460.0,0.00019849,2]
[366759472,1750434648197,-460.0,0.00019849,2]
[366759473,1750434648207,-460.0,0.00019849,2]
[366759474,1750434648217,-460.0,0.00019849,2]
[366759475,1750434648226,-1032.5,0.00019849,2]
[366759476,1750434648236,-460.0,0.00019849,2]
[366759477,1750434648246,-559.21,0.00019849,2]
[366759478,1750434648256,-460.0,0.0001985,2]
[366759479,1750434648265,-864.56,0.0001985,2]
[366759480,1750434648275,-992.41,0.0001985,2]
[366759481,1750434648285,-2253.28,0.0001985,2]
[366759482,1750434648295,-791.08,0.0001985,2]
[366759483,1750434648305,-460.0,0.00019851,2]
[366759484,1750434648315,-460.0,0.00019851,2]
[366759485,1750434648325,-460.0,0.00019851,2]
[366759486,1750434648334,-275.19901499,0.00019851,2]
[366759487,1750434648344,-460.0,0.00019851,2]
[366759488,1750434648354,-460.0,0.00019851,2]
[366759489,1750434648364,-400.0,0.00019851,2]
[366759490,1750434648374,-460.0,0.00019851,2]
[366759491,1750434648384,-460.0,0.00019851,2]
[366759492,1750434648394,-460.0,0.00019851,2]
[366759493,1750434648403,-283.83542508,0.00019851,2]
[366759494,1750434648413,-460.0,0.00019851,2]
[366759495,1750434648423,-460.0,0.00019851,2]
[366759496,1750434648433,-460.0,0.00019851,2]
[366759497,1750434648443,-460.0,0.00019851,2]
[366759498,1750434648453,-460.0,0.00019851,2]
[366759499,1750434648463,-460.0,0.00019851,2]
[366759500,1750434648473,-460.0,0.00019851,2]
[366759501,1750434648483,-460.0,0.00019851,2]
[366759502,1750434648494,-286.52231408,0.00019851,2]
[366759503,1750434648504,-250.0,0.00019851,2]
[366759504,1750434648514,-333.48584117,0.00019851,2]
[366759505,1750434648526,-460.0,0.00019852,2]
[366759506,1750434648537,-1000.0,0.00019853,2]
[366759507,1750434648547,-1000.0,0.00019867,2]
[366759508,1750434648557,-6744.92795448,0.00019899,2]
[366759509,1750434648568,-541.83808783,0.00019921,2]
[366759510,1750434648578,-362.05087146,0.00019921,2]
[366759511,1750434648587,-500.0,0.00019921,2]
[366759512,1750434648598,-1010.16848737,0.00019921,2]
[366759513,1750434648609,-500.0,0.00019921,2]
[366759514,1750434648618,-642.03922287,0.00019921,2]
[366759515,1750434648628,-1003.03143341,0.00019921,2]
[366759516,1750434648638,-486.09938044,0.00019921,2]
[366759517,1750434648649,-507.214106,0.00019921,2]
[366759518,1750434648659,-350.91645216,0.00019921,2]
[366759519,1750434648669,-500.0,0.00019921,2]
[366759520,1750434648678,-509.04374065,0.00019921,2]
[366759521,1750434648689,-1000.0,0.00019921,2]
[366759522,1750434648699,-1007.75060921,0.00019921,2]
[366759523,1750434648709,-582.43398316,0.00019921,2]
[366759524,1750434648719,-1000.0,0.00019921,2]
[366759525,1750434648876,-1000.0,0.00019921,2]
[366759526,1750434648886,-832.47041527,0.00019921,2]
[366759527,1750434648897,-1000.0,0.00019921,2]
[366759528,1750434648907,-1000.0,0.00019921,2]
[366759529,1750434648916,-503.72529131,0.00019921,2]
[366759530,1750434648926,-1000.0,0.00019921,2]
[366759531,1750434648936,-1000.0,0.00019921,2]
[366759532,1750434648945,-1000.0,0.00019921,2]
[366759533,1750434648955,-506.96582777,0.00019921,2]
[366759534,1750434648965,-1000.0,0.00019921,2]
[366759535,1750434648974,-611.5896609,0.00019921,2]
[366759536,1750434648984,-272.80494195,0.00019921,2]
[366759537,1750434648993,-1000.0,0.00019921,2]
[366759538,1750434649003,-500.99077716,0.00019921,2]
[366759539,1750434649012,-1000.0,0.00019921,2]
[366759540,1750434649022,-500.0,0.00019921,2]
[366759541,1750434649032,-1000.0,0.00019944,2]
[366759542,1750434649041,-100000.0,0.0001999,2]
[366759543,1750434649051,-1000.0,0.00019999,2]
[366759544,1750434649061,-1000.0,0.00019999,2]
[366759545,1750434649070,-383.62999756,0.00019999,2]
[366759546,1750434649080,-9251.49727644,0.0002,2]
[366759547,1750434649090,-11189.33782105,0.0002,2]
[366759548,1750434649100,-153.90681369,0.0002,2]
[366759549,1750434649111,-4000.0,0.0002,4]
[366759550,1750434649121,-879.52236616,0.00020027,2]
[366759551,1750434649132,-1963.54344588,0.00020068,2]
[366759552,1750434649142,-400.0,0.000201,2]
[366759553,1750434649153,-460.0,0.0002012,2]
[366759554,1750434649162,-460.0,0.0002012,2]
[366759555,1750434649172,-767.24,0.0002012,2]
[366759556,1750434649182,-150.38031246,0.0002012,2]
[366759557,1750434649193,-1824.29,0.0002012,2]
[366759558,1750434649203,-1494.94,0.0002012,2]
[366759559,1750434649213,-460.0,0.0002012,2]
[366759560,1750434649223,-460.0,0.0002012,2]
[366759561,1750434649233,-460.0,0.0002012,2]
[366759562,1750434649243,-1381.71,0.0002012,2]
[366759563,1750434649252,-460.0,0.0002012,2]
[366759564,1750434649262,-171.88158986,0.00020121,2]
[366759565,1750434649272,-1510.33,0.00020121,2]
[366759566,1750434649282,-401.19447688,0.00020121,2]
[366759567,1750434649291,-1727.98,0.00020121,2]
[366759568,1750434649301,-518.78,0.00020121,2]
[366759569,1750434649311,-460.0,0.00020121,2]
[366759570,1750434649322,-763.9,0.00020121,2]
[366759571,1750434649331,-839.66,0.00020121,2]
[366759572,1750434649341,-1294.25,0.00020121,2]
[366759573,1750434649351,-460.0,0.00020121,2]
[366759574,1750434649360,-460.0,0.00020121,2]
[366759575,1750434649370,-460.0,0.00020121,2]
[366759576,1750434649380,-460.0,0.00020121,2]
[366759577,1750434649390,-460.0,0.00020121,2]
[366759578,1750434649400,-460.0,0.00020121,2]
[366759579,1750434649409,-460.0,0.00020121,2]
[366759580,1750434649419,-460.0,0.00020121,2]
[366759581,1750434649429,-460.0,0.00020121,2]
[366759582,1750434649439,-460.0,0.00020123,2]
[366759583,1750434649449,-460.0,0.00020123,2]
[366759584,1750434649459,-296.62675901,0.00020123,2]
[366759585,1750434649468,-460.0,0.00020123,2]
[366759586,1750434649478,-460.0,0.00020123,2]
[366759587,1750434649488,-460.0,0.00020123,2]
[366759588,1750434649498,-460.0,0.00020123,2]
[366759589,1750434649508,-460.0,0.00020123,2]
[366759590,1750434649518,-460.0,0.00020123,2]
[366759591,1750434649529,-460.0,0.00020123,2]
[366759592,1750434649540,-460.0,0.00020123,2]
[366759593,1750434649550,-460.0,0.00020123,2]
[366759594,1750434649559,-460.0,0.00020123,2]
[366759595,1750434649569,-460.0,0.00020123,2]
[366759596,1750434649579,-460.0,0.00020123,2]
[366759597,1750434649589,-460.0,0.00020123,2]
[366759598,1750434649600,-517.83,0.00020123,2]
[366759599,1750434649611,-460.0,0.00020123,2]
[366759600,1750434649621,-460.0,0.00020123,2]
[366759601,1750434649630,-460.0,0.00020123,2]
[366759602,1750434649640,-460.0,0.00020123,2]
[366759603,1750434649649,-460.0,0.00020123,2]
[366759604,1750434649659,-460.0,0.00020123,2]
[366759605,1750434649669,-460.0,0.00020123,2]
[366759606,1750434649679,-460.0,0.00020123,2]
[366759607,1750434649688,-460.0,0.00020123,2]
[366759608,1750434649698,-460.48,0.00020123,2]
[366759609,1750434649708,-460.0,0.00020123,2]
[366759610,1750434649718,-460.0,0.00020123,2]
[366759611,1750434649728,-678.06,0.00020123,2]
[366759612,1750434649738,-460.0,0.00020123,2]
[366759613,1750434649748,-460.0,0.00020123,2]
[366759614,1750434649757,-1121.3,0.00020123,2]
[366759615,1750434649767,-611.74,0.00020123,2]
[366759616,1750434649777,-460.0,0.00020123,2]
[366759617,1750434649786,-460.0,0.00020123,2]
[366759618,1750434649796,-460.0,0.00020123,2]
[366759619,1750434649806,-460.0,0.00020123,2]
[366759620,1750434649818,-460.0,0.00020123,2]
[366759621,1750434649828,-617.93,0.00020123,2]
[366759622,1750434649837,-460.0,0.00020123,2]
[366759623,1750434649847,-460.0,0.00020123,2]
[366759624,1750434649856,-460.0,0.00020123,2]
[366759625,1750434649866,-460.0,0.00020123,2]
[366759626,1750434649876,-460.0,0.00020123,2]
[366759627,1750434649887,-1032.5,0.00020123,2]
[366759628,1750434649897,-460.0,0.00020123,2]
[366759629,1750434649907,-559.21,0.00020123,2]
[366759630,1750434649917,-481.71,0.00020124,2]
[366759631,1750434649926,-864.56,0.00020124,2]
[366759632,1750434649936,-992.41,0.00020124,2]
[366759633,1750434649947,-2253.28,0.00020124,2]
[366759634,1750434649956,-791.08,0.00020124,2]
[366759635,1750434649966,-460.0,0.00020125,2]
[366759636,1750434649976,-460.0,0.00020125,2]
[366759637,1750434649985,-460.0,0.00020125,2]
[366759638,1750434649996,-460.0,0.00020125,2]
[366759639,1750434650005,-460.0,0.00020125,2]
[366759640,1750434650015,-460.0,0.00020125,2]
[366759641,1750434650025,-460.0,0.00020125,2]
[366759642,1750434650035,-460.0,0.00020125,2]
[366759643,1750434650044,-460.0,0.00020125,2]
[366759644,1750434650054,-530.28269353,0.00020125,2]
[366759645,1750434650064,-460.0,0.00020125,2]
[366759646,1750434650074,-460.0,0.00020125,2]
[366759647,1750434650084,-460.0,0.00020125,2]
[366759648,1750434650094,-460.0,0.00020126,2]
[366759649,1750434650104,-500.0,0.00020164,2]
[366759650,1750434650114,-428.292556,0.00020187,2]
[366759651,1750434650124,-290.0,0.00020394,2]
[366759652,1750434650134,-767.24,0.00020394,2]
[366759653,1750434650143,-1824.29,0.00020394,2]
[366759654,1750434650152,-1494.94,0.00020394,2]
[366759655,1750434650162,-460.0,0.00020394,2]
[366759656,1750434650172,-460.0,0.00020394,2]
[366759657,1750434650182,-384.42302278,0.00020394,2]
[366759658,1750434650192,-1381.71,0.00020394,2]
[366759659,1750434650201,-460.0,0.00020394,2]
[366759660,1750434650211,-1510.33,0.00020395,2]
[366759661,1750434650221,-1727.98,0.00020395,2]
[366759662,1750434650230,-518.78,0.00020395,2]
[366759663,1750434650240,-460.0,0.00020395,2]
[366759664,1750434650250,-763.9,0.00020395,2]
[366759665,1750434650260,-839.66,0.00020395,2]
[366759666,1750434650270,-1294.25,0.00020395,2]
[366759667,1750434650280,-460.0,0.00020395,2]
[366759668,1750434650289,-460.0,0.00020395,2]
[366759669,1750434650299,-460.0,0.00020395,2]
[366759670,1750434650309,-460.0,0.00020395,2]
[366759671,1750434650318,-460.0,0.00020395,2]
[366759672,1750434650327,-460.0,0.00020395,2]
[366759673,1750434650337,-460.0,0.00020395,2]
[366759674,1750434650347,-460.0,0.00020395,2]
[366759675,1750434650357,-460.0,0.00020397,2]
[366759676,1750434650367,-330.46405356,0.00020397,2]
[366759677,1750434650376,-460.0,0.00020397,2]
[366759678,1750434650387,-460.0,0.00020397,2]
[366759679,1750434650397,-460.0,0.00020397,2]
[366759680,1750434650407,-460.0,0.00020397,2]
[366759681,1750434650417,-460.0,0.00020397,2]
[366759682,1750434650426,-460.0,0.00020397,2]
[366759683,1750434650436,-460.0,0.00020397,2]